bitfinex/quotes_BTCUSD_20250705
["timestamp","ask_amount","ask_price","bid_price","bid_amount"]
[1751691732157,0.5105744,108300.0,108290.0,0.84257842]
[1751691732339,0.51980724,108300.0,108290.0,0.84257842]
[1751691733171,0.52904025,108300.0,108290.0,0.84257842]
[1751691733540,0.51980724,108300.0,108290.0,0.84257842]
[1751691734818,0.52904025,108300.0,108290.0,0.84257842]
[1751691735202,0.52904016,108300.0,108290.0,0.84257842]
[1751691735811,0.5105744,108300.0,108290.0,0.84257842]
[1751691736034,0.0221744,108300.0,108290.0,0.87317842]
[1751691736397,0.70289328,108310.0,108300.0,0.21237199]
[1751691736565,0.71212569,108310.0,108300.0,0.58231666]
[1751691736789,0.71212561,108310.0,108300.0,0.58231666]
[1751691736960,0.36289328,108310.0,108300.0,0.58231666]
[1751691737584,0.36489328,108310.0,108300.0,0.58231666]
[1751691737789,0.36589328,108310.0,108300.0,0.58231666]
[1751691737986,0.37512561,108310.0,108300.0,0.58231666]
[1751691738600,0.36589328,108310.0,108300.0,0.58231666]
[1751691738810,0.37512552,108310.0,108300.0,0.58231666]
[1751691739296,0.38435793,108310.0,108300.0,0.58231666]
[1751691741157,0.38435785,108310.0,108300.0,0.58231666]
[1751691741978,0.36589328,108310.0,108300.0,0.58231666]
[1751691742611,0.37512561,108310.0,108300.0,0.58231666]
[1751691743026,0.37212561,108310.0,108300.0,0.58231666]
[1751691743428,0.37212561,108310.0,108300.0,0.58331666]
[1751691745248,0.34995121,108310.0,108300.0,0.58331666]
[1751691747928,0.35918371,108310.0,108300.0,0.58331666]
[1751691748511,0.34995121,108310.0,108300.0,0.58331666]
[1751691749208,0.35918371,108310.0,108300.0,0.58331674]
[1751691749764,0.35918371,108310.0,108300.0,0.59254975]
[1751691749963,0.35918362,108310.0,108300.0,0.59254975]
[1751691751263,0.37212561,108310.0,108300.0,0.59254975]
[1751691751908,0.38135802,108310.0,108300.0,0.59254975]
[1751691752410,0.38135802,108310.0,108300.0,0.58331674]
[1751691752586,0.3905906,108310.0,108300.0,0.58331674]
[1751691753041,0.39059052,108310.0,108300.0,0.58331674]
[1751691754924,0.39059052,108310.0,108300.0,0.59254975]
[1751691755123,0.38135802,108310.0,108300.0,0.59254975]
[1751691755893,0.38135802,108310.0,108300.0,0.58331674]
[1751691756116,0.38135802,108310.0,108300.0,0.57408365]
[1751691756318,0.39059069,108310.0,108300.0,0.58331683]
[1751691756669,0.39059069,108310.0,108300.0,0.57408365]
[1751691757106,0.39059069,108310.0,108300.0,0.29557591]
[1751691757783,0.39059069,108310.0,108300.0,0.295576]
[1751691758665,0.55678135,108310.0,108300.0,0.50850913]
[1751691758832,0.83528909,108310.0,108300.0,0.50850913]
[1751691759386,0.55678135,108310.0,108300.0,0.50850913]
[1751691759607,0.83528909,108310.0,108300.0,0.51774265]
[1751691759825,0.55678135,108310.0,108300.0,0.51774274]
[1751691760029,0.83528909,108310.0,108300.0,0.51774274]
[1751691760473,0.83528909,108310.0,108300.0,0.13767693]
[1751691760474,0.91749361,108310.0,108300.0,0.13767693]
[1751691760681,0.91749361,108310.0,108300.0,0.2324]
[1751691763086,1.40589361,108310.0,108300.0,0.18724]
[1751691763868,1.40589361,108310.0,108300.0,0.001]
[1751691764084,2.05211935,108310.0,108300.0,0.18724]
[1751691764283,1.77361161,108310.0,108300.0,0.18724]
[1751691766732,1.49510387,108310.0,108300.0,0.18724]
[1751691767041,1.77361161,108310.0,108300.0,0.18724]
[1751691767230,1.77361161,108310.0,108300.0,0.001]
[1751691778614,1.77357125,108310.0,108300.0,0.001]
[1751691780687,2.05207899,108310.0,108300.0,0.001]
[1751691780884,1.6006008,108310.0,108300.0,0.001]
[1751691781087,1.62828794,108310.0,108300.0,0.001]
[1751691781553,1.81436794,108310.0,108300.0,0.001]
[1751691781956,0.23605758,108290.0,108280.0,0.23201046]
[1751691782171,0.51456532,108290.0,108280.0,0.13736739]
[1751691782409,0.53672178,108290.0,108280.0,0.09216739]
[1751691782822,0.87672178,108290.0,108280.0,0.00073046]
[1751691783027,0.96815871,108290.0,108280.0,0.00073046]
[1751691783557,0.96815871,108290.0,108280.0,0.00173046]
[1751691784281,0.96815871,108290.0,108280.0,0.00073046]
[1751691787264,0.96815871,108290.0,108280.0,0.00373046]
[1751691787627,0.96815871,108290.0,108280.0,0.00073046]
[1751691787822,0.96815871,108290.0,108280.0,0.00173046]
[1751691791708,0.68965097,108290.0,108280.0,0.00173046]
[1751691791914,0.96815871,108290.0,108280.0,0.00173046]
[1751691792306,0.99585227,108290.0,108280.0,0.00173046]
[1751691793789,1.27436001,108290.0,108280.0,0.00173046]
[1751691794576,0.75426634,108290.0,108280.0,0.00173046]
[1751691794779,1.21984489,108290.0,108280.0,0.00173046]
[1751691797074,1.40604489,108290.0,108280.0,0.00173046]
[1751691797900,1.37835133,108290.0,108280.0,0.00173046]
[1751691802536,1.37831741,108290.0,108280.0,0.00173046]
[1751691802765,1.46975434,108290.0,108280.0,0.00173046]
[1751691804272,1.49752334,108290.0,108280.0,0.00173046]
[1751691806294,1.55290606,108290.0,108280.0,0.00173046]
[1751691808380,1.55292077,108290.0,108280.0,0.00173046]
[1751691814275,1.51599896,108290.0,108280.0,0.00173046]
[1751691821399,1.42456203,108290.0,108280.0,0.00173046]
[1751691827179,1.36917931,108290.0,108280.0,0.00173046]
[1751691853564,1.44302294,108290.0,108280.0,0.00173046]
[1751691855824,1.44209945,108290.0,108280.0,0.00173046]
[1751691866467,0.88508397,108290.0,108280.0,0.00173046]
[1751691866687,1.53353638,108290.0,108280.0,0.00173046]
[1751691871836,1.44209945,108290.0,108280.0,0.00173046]
[1751691890819,0.2031951,108270.0,108260.0,0.04035733]
[1751691890958,0.56857778,108270.0,108260.0,0.04035733]
[1751691891981,0.56857778,108270.0,108260.0,0.04082816]
[1751691892190,0.56857778,108270.0,108260.0,0.04882816]
[1751691893489,0.57796103,108270.0,108260.0,0.04882816]
[1751691894492,0.57796103,108270.0,108260.0,0.05749381]
[1751691894697,0.29945329,108270.0,108260.0,0.05749381]
[1751691895134,0.57796103,108270.0,108260.0,0.04882816]
[1751691895767,0.57796103,108270.0,108260.0,0.04582816]
[1751691896210,0.57796103,108270.0,108260.0,0.01622816]
[1751691896864,0.57796103,108270.0,108260.0,0.04102816]
[1751691897079,0.57796103,108270.0,108260.0,0.04302816]
[1751691900654,1.31095746,108270.0,108260.0,0.01322816]
[1751691900866,1.33873046,108270.0,108260.0,0.01122816]
[1751691901080,1.52473046,108270.0,108260.0,0.01022816]
[1751691901316,1.43829353,108270.0,108260.0,0.01022816]
[1751691901763,1.44129353,108270.0,108260.0,0.01022816]
[1751691903300,1.44133353,108270.0,108260.0,0.01022816]
[1751691903756,1.25529353,108270.0,108260.0,0.01022816]
[1751691903974,1.14628579,108270.0,108260.0,0.01022816]
[1751691904195,1.43999353,108270.0,108260.0,0.01022816]
[1751691905322,1.47693102,108270.0,108260.0,0.01022816]
[1751691906471,1.49046893,108270.0,108260.0,0.01022816]
[1751691907500,1.47693102,108270.0,108260.0,0.01022816]
[1751691910845,0.90471554,108270.0,108260.0,0.01022816]
[1751691911086,1.16742328,108270.0,108260.0,0.01022816]
[1751691912900,1.19842328,108270.0,108260.0,0.01022816]
[1751691913112,1.47693102,108270.0,108260.0,0.01022816]
[1751691913532,1.56836795,108270.0,108260.0,0.01022816]
[1751691913745,1.47693102,108270.0,108260.0,0.01022816]
[1751691913993,1.19842328,108270.0,108260.0,0.01022816]
[1751691916186,1.47693102,108270.0,108260.0,0.01022816]
[1751691919311,1.19842328,108270.0,108260.0,0.01022816]
[1751691919634,0.70291554,108270.0,108260.0,0.01022816]
[1751691919760,0.95365028,108270.0,108260.0,0.02492816]
[1751691919957,0.89816083,108270.0,108260.0,0.01022816]
[1751691920602,0.89316083,108270.0,108260.0,0.01022816]
[1751691920800,0.89616083,108270.0,108260.0,0.01022816]
[1751691921206,0.89316083,108270.0,108260.0,0.01022816]
[1751691922007,0.89516083,108270.0,108260.0,0.01022816]
[1751691923830,0.87302358,108270.0,108260.0,0.01022816]
[1751691924031,0.89518948,108270.0,108260.0,0.01022816]
[1751691924470,0.88580623,108270.0,108260.0,0.01022816]
[1751691925319,0.94129568,108270.0,108260.0,0.01022816]
[1751691926558,0.66278794,108270.0,108260.0,0.01022816]
[1751691926734,0.94129568,108270.0,108260.0,0.01022816]
[1751691934076,0.95649568,108270.0,108260.0,0.01022816]
[1751691935552,0.98830304,108270.0,108260.0,0.01022816]
[1751691935907,1.00390304,108270.0,108260.0,0.01022816]
[1751691936132,0.97209568,108270.0,108260.0,0.01022816]
[1751691937320,0.97211533,108270.0,108260.0,0.01022816]
[1751691967647,1.25062307,108270.0,108260.0,0.01022816]
[1751691971351,1.39968558,108270.0,108260.0,0.01022816]
[1751691971586,1.42745658,108270.0,108260.0,0.01022816]
[1751691971786,1.51889351,108270.0,108260.0,0.01022816]
[1751691978310,1.51889847,108270.0,108260.0,0.01022816]
[1751691980667,1.44121851,108270.0,108260.0,0.01022816]
[1751691981234,1.49669188,108270.0,108260.0,0.01022816]
[1751691981374,1.51888122,108270.0,108260.0,0.01022816]
[1751691984930,1.59207092,108270.0,108260.0,0.01022816]
[1751691985145,1.59207092,108270.0,108240.0,0.0052834]
[1751691985146,2.02712474,108270.0,108240.0,0.0052834]
[1751691985331,0.85783173,108250.0,108240.0,0.01399557]
[1751691985535,1.06602107,108250.0,108240.0,0.01399557]
[1751691985772,1.09379707,108250.0,108240.0,0.01399557]
[1751691987186,1.11382584,108250.0,108240.0,0.01399557]
[1751691987357,1.11582584,108250.0,108240.0,0.01399557]
[1751691987749,1.11782584,108250.0,108240.0,0.01399557]
[1751691988176,0.56081036,108250.0,108240.0,0.01399557]
[1751691988384,1.11782584,108250.0,108240.0,0.01399557]
[1751691988593,1.09011218,108250.0,108240.0,0.01399557]
[1751691990273,1.11780142,108250.0,108240.0,0.01399557]
[1751691990464,1.11780142,108250.0,108240.0,0.0139849]
[1751691993854,1.60620142,108250.0,108240.0,0.0139849]
[1751691999334,1.60620142,108250.0,108240.0,0.01398138]
[1751691999807,1.58617265,108250.0,108240.0,0.01398138]
[1751691999986,1.27996891,108250.0,108240.0,0.01398138]
[1751692000457,1.06098891,108250.0,108240.0,0.19875595]
[1751692000658,1.55009896,108250.0,108240.0,0.03553034]
[1751692001138,1.55009896,108250.0,108240.0,0.22030491]
[1751692001278,1.54090152,108250.0,108240.0,0.03553034]
[1751692001478,1.54090152,108250.0,108240.0,0.00533034]
[1751692004251,1.63233845,108250.0,108240.0,0.00533034]
[1751692006817,1.54090152,108250.0,108240.0,0.00533034]
[1751692007418,1.54085873,108250.0,108240.0,0.00533034]
[1751692011911,1.35473873,108250.0,108240.0,0.19934363]
[1751692012087,1.54077873,108250.0,108240.0,0.19010491]
[1751692012306,1.54077873,108250.0,108240.0,0.00533034]
[1751692012495,1.57774868,108250.0,108240.0,0.00533034]
[1751692014531,1.61064868,108250.0,108240.0,0.00533034]
[1751692016881,1.61064868,108250.0,108240.0,0.19010491]
[1751692017084,1.59404868,108250.0,108240.0,0.19010491]
[1751692018743,1.59404868,108250.0,108240.0,0.00533034]
[1751692019006,1.59404868,108250.0,108240.0,0.19010491]
[1751692019164,3.59404868,108250.0,108240.0,0.19010491]
[1751692020151,3.40800868,108250.0,108240.0,0.19010491]
[1751692020434,3.59404868,108250.0,108240.0,0.19010491]
[1751692020811,3.59404868,108250.0,108240.0,0.00533034]
[1751692021410,3.40800868,108250.0,108240.0,0.00533034]
[1751692021615,3.59404868,108250.0,108240.0,0.00533034]
[1751692021811,3.61014868,108250.0,108240.0,0.00533034]
[1751692023036,3.61014868,108250.0,108240.0,0.19010491]
[1751692023241,3.61014868,108250.0,108240.0,0.00533034]
[1751692030567,3.58246213,108250.0,108240.0,0.00533034]
[1751692031510,3.39539132,108250.0,108240.0,0.00533034]
[1751692031707,3.58246213,108250.0,108240.0,0.00533034]
[1751692032161,3.58246213,108250.0,108240.0,0.19010491]
[1751692032563,3.58246213,108250.0,108240.0,0.00533034]
[1751692034952,3.86096987,108250.0,108240.0,0.00533034]
[1751692035175,3.9164248,108250.0,108240.0,0.00533034]
[1751692035380,4.00786173,108250.0,108240.0,0.0140023]
[1751692035586,4.00786173,108250.0,108240.0,0.00533034]
[1751692038485,3.9164248,108250.0,108240.0,0.00533034]
[1751692041383,3.86096987,108250.0,108240.0,0.00533034]
[1751692047890,3.30395439,108250.0,108240.0,0.00533034]
[1751692048094,3.86096987,108250.0,108240.0,0.00533034]
[1751692050091,3.58246213,108250.0,108240.0,0.00533034]
[1751692051534,3.67389906,108250.0,108240.0,0.00533034]
[1751692054274,3.30395439,108250.0,108240.0,0.00533034]
[1751692054474,3.58246213,108250.0,108240.0,0.00533034]
[1751692054677,3.63791706,108250.0,108240.0,0.00533034]
[1751692054916,3.66569306,108250.0,108240.0,0.00533034]
[1751692061815,3.9442008,108250.0,108240.0,0.00533034]
[1751692062408,4.03563773,108250.0,108240.0,0.00533034]
[1751692067525,3.99866778,108250.0,108240.0,0.00533034]
[1751692068378,4.29866778,108250.0,108240.0,0.00533034]
[1751692081919,3.99866778,108250.0,108240.0,0.00533034]
[1751692084623,0.02771975,108220.0,108210.0,0.2755899]
[1751692084824,0.01847958,108220.0,108210.0,0.36707391]
[1751692085882,0.01847958,108220.0,108210.0,0.36907391]
[1751692086085,0.02771967,108220.0,108210.0,0.36907391]
[1751692086294,0.03695993,108220.0,108210.0,0.35983331]
[1751692086916,0.03695984,108220.0,108210.0,0.35983331]
[1751692087139,0.03695984,108220.0,108210.0,0.36383331]
[1751692087343,0.0462001,108220.0,108210.0,0.36383331]
[1751692087554,0.34006316,108220.0,108210.0,0.36383348]
[1751692087760,0.03696044,108220.0,108210.0,0.37307425]
[1751692087965,0.32470853,108220.0,108210.0,0.37307425]
[1751692088171,0.04620079,108220.0,108210.0,0.37307425]
[1751692088391,0.02772018,108220.0,108210.0,0.38231494]
[1751692089684,0.08765891,108220.0,108210.0,0.37307425]
[1751692090095,0.07841856,108220.0,108210.0,0.38231494]
[1751692090694,0.08765882,108220.0,108210.0,0.38231494]
[1751692090911,0.09689925,108220.0,108210.0,0.36383348]
[1751692091116,0.08765882,108220.0,108210.0,0.35797425]
[1751692091495,0.08765882,108220.0,108210.0,0.34327425]
[1751692091699,0.08765882,108220.0,108210.0,0.35251494]
[1751692092082,0.08765882,108220.0,108210.0,0.34327425]
[1751692093186,0.08765882,108220.0,108210.0,0.35251494]
[1751692094220,0.03696044,108220.0,108210.0,0.35251494]
[1751692094418,0.05914168,108220.0,108210.0,0.35251494]
[1751692094963,0.04990142,108220.0,108210.0,0.35251494]
[1751692096439,0.05914168,108220.0,108210.0,0.35251494]
[1751692097553,0.33764942,108220.0,108210.0,0.34327425]
[1751692097955,0.34688985,108220.0,108210.0,0.34327425]
[1751692098292,0.06838211,108220.0,108210.0,0.52987425]
[1751692098480,0.11641336,108220.0,108210.0,0.52987425]
[1751692099015,0.05914168,108220.0,108210.0,0.52987425]
[1751692099155,0.05914168,108220.0,108210.0,0.53911494]
[1751692099356,0.05914168,108220.0,108210.0,0.52987425]
[1751692099556,0.06838211,108220.0,108210.0,0.52987425]
[1751692099976,0.06838203,108220.0,108210.0,0.51139262]
[1751692100179,0.12565421,108220.0,108210.0,0.52063348]
[1751692100442,0.40416195,108220.0,108210.0,0.52063348]
[1751692100575,0.40416195,108220.0,108210.0,0.32479262]
[1751692100814,0.39492186,108220.0,108210.0,0.51139262]
[1751692101258,0.39492186,108220.0,108210.0,0.52063348]
[1751692101821,0.33765019,108220.0,108210.0,0.52063348]
[1751692102551,0.52245891,108220.0,108210.0,0.51139305]
[1751692102777,0.52245695,108220.0,108210.0,0.33403408]
[1751692102974,0.24394921,108220.0,108210.0,0.52063408]
[1751692103338,0.54341678,108220.0,108210.0,0.51143305]
[1751692103699,0.26490904,108220.0,108210.0,0.52067408]
[1751692103992,0.26490904,108220.0,108210.0,0.52991502]
[1751692104194,0.34144582,108220.0,108210.0,0.09748401]
[1751692104345,0.88922104,108220.0,108210.0,0.09748401]
[1751692104555,0.6107133,108220.0,108210.0,0.09748401]
[1751692104751,0.88922104,108220.0,108210.0,0.09748401]
[1751692104952,0.6107133,108220.0,108210.0,0.09748401]
[1751692106181,1.22922104,108220.0,108210.0,0.09748401]
[1751692106402,1.25694514,108220.0,108210.0,0.09548401]
[1751692106961,1.25694514,108220.0,108210.0,0.09148401]
[1751692107242,1.25694514,108220.0,108210.0,0.09248401]
[1751692107402,1.18040836,108220.0,108210.0,0.09248401]
[1751692109877,1.18040836,108220.0,108210.0,0.00104708]
[1751692111352,1.15268426,108220.0,108210.0,0.00104708]
[1751692112570,1.18040836,108220.0,108210.0,0.00104708]
[1751692113874,1.36696836,108220.0,108210.0,0.00104708]
[1751692114094,1.45840529,108220.0,108210.0,0.00104708]
[1751692114724,1.45840529,108220.0,108210.0,0.00970404]
[1751692117091,0.90138981,108220.0,108210.0,0.00970404]
[1751692117283,1.45840529,108220.0,108210.0,0.00970312]
[1751692117671,1.45840529,108220.0,108210.0,0.00970289]
[1751692118480,1.45840529,108220.0,108210.0,0.00104708]
[1751692118912,1.45840529,108220.0,108210.0,0.00970265]
[1751692120100,1.36696836,108220.0,108210.0,0.00970265]
[1751692120926,0.81003288,108220.0,108210.0,0.19452845]
[1751692121154,1.08854062,108220.0,108210.0,0.20376974]
[1751692121524,1.08854062,108220.0,108210.0,0.21359648]
[1751692121525,0.87417652,108220.0,108210.0,0.21359648]
[1751692121731,0.87417652,108220.0,108210.0,0.19511417]
[1751692121881,0.87417652,108220.0,108210.0,0.18587288]
[1751692123451,0.8860728,108220.0,108210.0,0.18587288]
[1751692123657,0.87683245,108220.0,108210.0,0.18587288]
[1751692124069,0.87683245,108220.0,108210.0,0.00104708]
[1751692124929,1.14344391,108220.0,108210.0,0.00104708]
[1751692126209,1.35796801,108220.0,108210.0,0.00104708]
[1751692127902,1.35796801,108220.0,108210.0,0.00970595]
[1751692129361,1.35796801,108220.0,108210.0,0.00104708]
[1751692132345,1.39493719,108220.0,108210.0,0.00104708]
[1751692132527,1.48637412,108220.0,108210.0,0.00104708]
[1751692140658,1.39493719,108220.0,108210.0,0.00104708]
[1751692140866,0.83792171,108220.0,108210.0,0.00104708]
[1751692141077,1.39493719,108220.0,108210.0,0.00104708]
[1751692142543,0.83792171,108220.0,108210.0,0.00104708]
[1751692142750,1.39493719,108220.0,108210.0,0.00104708]
[1751692142958,1.45543092,108220.0,108210.0,0.00104708]
[1751692143578,1.39493719,108220.0,108210.0,0.00104708]
[1751692143787,0.83792171,108220.0,108210.0,0.00104708]
[1751692143983,1.39493719,108220.0,108210.0,0.00104708]
[1751692149400,1.36721309,108220.0,108210.0,0.00104708]
[1751692161272,0.81019761,108220.0,108210.0,0.00104708]
[1751692161472,1.36721309,108220.0,108210.0,0.00104708]
[1751692162079,0.90190535,108220.0,108210.0,0.00104708]
[1751692162432,1.08838535,108220.0,108210.0,0.00104708]
[1751692163439,0.80987761,108220.0,108210.0,0.00104708]
[1751692163645,1.08838535,108220.0,108210.0,0.00104708]
[1751692165555,1.36689309,108220.0,108210.0,0.00104708]
[1751692168639,1.17982228,108220.0,108210.0,0.00104708]
[1751692169708,1.45833002,108220.0,108210.0,0.00104708]
[1751692171201,1.36689309,108220.0,108210.0,0.00104708]
[1751692186223,1.36689309,108220.0,108210.0,0.00108708]
[1751692191494,0.80987761,108220.0,108210.0,0.00108708]
[1751692191702,1.36689309,108220.0,108210.0,0.00108708]
[1751692192609,1.08838535,108220.0,108210.0,0.00108708]
[1751692193539,1.17982228,108220.0,108210.0,0.00108708]
[1751692194097,1.08838535,108220.0,108210.0,0.00108708]
[1751692195269,0.80987761,108220.0,108210.0,0.00108708]
[1751692195438,1.08838535,108220.0,108210.0,0.00108708]
[1751692198073,0.80987761,108220.0,108210.0,0.00108708]
[1751692198284,1.08838535,108220.0,108210.0,0.00108708]
[1751692205243,0.80987761,108220.0,108210.0,0.00108708]
[1751692205459,0.64516031,108220.0,108210.0,0.46442062]
[1751692205672,0.63940023,108220.0,108210.0,0.2865911]
[1751692206103,0.63940023,108220.0,108210.0,0.2958323]
[1751692206943,0.91790797,108220.0,108210.0,0.2958323]
[1751692207154,0.63940023,108220.0,108210.0,0.2865911]
[1751692207358,0.90866805,108220.0,108210.0,0.2865911]
[1751692208187,0.90866805,108220.0,108210.0,0.2958323]
[1751692209361,0.90866805,108220.0,108210.0,0.27734981]
[1751692210542,0.90866805,108220.0,108210.0,0.2865911]
[1751692211431,0.90866805,108220.0,108210.0,0.2958323]
[1751692211634,0.90866805,108220.0,108210.0,0.2865911]
[1751692212743,0.90866805,108220.0,108210.0,0.2958323]
[1751692212948,0.90866805,108220.0,108210.0,0.2865911]
[1751692213807,0.90866805,108220.0,108210.0,0.2958323]
[1751692214228,0.94016805,108220.0,108210.0,0.2865911]
[1751692215068,0.94016805,108220.0,108210.0,0.2958323]
[1751692215274,0.92486805,108220.0,108210.0,0.2865911]
[1751692217303,0.92486805,108220.0,108210.0,0.62262167]
[1751692217304,0.39914173,108220.0,108210.0,0.62262167]
[1751692217507,0.41762165,108220.0,108210.0,0.62262167]
[1751692217710,0.41762156,108220.0,108210.0,0.62262167]
[1751692218263,0.43610199,108220.0,108210.0,0.62162184]
[1751692218442,0.43610199,108220.0,108210.0,0.62362184]
[1751692218630,0.43610199,108220.0,108210.0,0.62462184]
[1751692218825,0.43610199,108220.0,108210.0,0.30707324]
[1751692219006,0.43610199,108220.0,108210.0,0.59482184]
[1751692219409,0.43610199,108220.0,108210.0,0.78114184]
[1751692220254,0.43610267,108220.0,108210.0,0.78114184]
[1751692220457,0.38990198,108220.0,108210.0,0.78114184]
[1751692220659,0.3898992,108220.0,108210.0,0.79038253]
[1751692221911,0.3898992,108220.0,108210.0,0.78114184]
[1751692222115,0.39913963,108220.0,108210.0,0.78114184]
[1751692222524,0.39913955,108220.0,108210.0,0.79949135]
[1751692222930,0.39913955,108220.0,108210.0,0.79949075]
[1751692223147,0.04989912,108220.0,108210.0,0.79949075]
[1751692223353,0.05913938,108220.0,108210.0,0.52098301]
[1751692223567,0.05913938,108220.0,108210.0,0.79949075]
[1751692223968,0.05913929,108220.0,108210.0,0.79949075]
[1751692225044,0.04065903,108220.0,108210.0,0.79949075]
[1751692225457,0.0498992,108220.0,108210.0,0.79949075]
[1751692225628,0.04065903,108220.0,108210.0,0.79949075]
[1751692226597,0.04065903,108220.0,108210.0,0.52098301]
[1751692226988,0.04065903,108220.0,108210.0,0.79949075]
[1751692227200,0.0498992,108220.0,108210.0,0.79949075]
[1751692227981,0.04065903,108220.0,108210.0,0.82999075]
[1751692228594,0.04989929,108220.0,108210.0,0.79949075]
[1751692228834,0.0498992,108220.0,108210.0,0.79949075]
[1751692229057,0.03141903,108220.0,108210.0,0.79949075]
[1751692229267,0.04065903,108220.0,108210.0,0.79949075]
[1751692230110,0.04065895,108220.0,108210.0,0.79949075]
[1751692231349,0.04989895,108220.0,108210.0,0.79949075]
[1751692232603,0.05913912,108220.0,108210.0,0.79949075]
[1751692232999,0.06837938,108220.0,108210.0,0.79949075]
[1751692233211,0.05913912,108220.0,108210.0,0.79949075]
[1751692234496,0.04989895,108220.0,108210.0,0.79949075]
[1751692234721,0.05913912,108220.0,108210.0,0.79949075]
[1751692235810,0.06837947,108220.0,108210.0,0.79025006]
[1751692236020,0.06837947,108220.0,108210.0,0.79949075]
[1751692236230,0.05913912,108220.0,108210.0,0.79949075]
[1751692237749,0.04989895,108220.0,108210.0,0.79949075]
[1751692237958,0.05913904,108220.0,108210.0,0.79949075]
[1751692238383,0.04065895,108220.0,108210.0,0.79949075]
[1751692239049,0.03141903,108220.0,108210.0,0.79949075]
[1751692240774,0.0313959,108220.0,108210.0,0.79949075]
[1751692241224,0.0406359,108220.0,108210.0,0.79949075]
[1751692241662,0.04063582,108220.0,108210.0,0.79949075]
[1751692241874,0.04063582,108220.0,108210.0,0.52098301]
[1751692242083,0.06547582,108220.0,108210.0,0.79949075]
[1751692243183,0.0469959,108220.0,108210.0,0.79949075]
[1751692243394,0.0313959,108220.0,108210.0,0.79949075]
[1751692244896,0.04063582,108220.0,108210.0,0.79949075]
[1751692245291,0.0313959,108220.0,108210.0,0.79949075]
[1751692245756,0.0313959,108220.0,108210.0,1.07799849]
[1751692245757,0.02215615,108220.0,108210.0,1.07799849]
[1751692245968,0.50687787,108230.0,108220.0,0.21252899]
[1751692246183,0.5290429,108230.0,108220.0,0.58247366]
[1751692246844,0.53828197,108230.0,108220.0,0.58247366]
[1751692247053,0.54752129,108230.0,108220.0,0.58247366]
[1751692247330,0.58002129,108230.0,108220.0,0.58247366]
[1751692247542,0.5892607,108230.0,108220.0,0.58247366]
[1751692247948,0.58002129,108230.0,108220.0,0.58247366]
[1751692248383,0.58002129,108230.0,108220.0,0.58347366]
[1751692249930,0.58002129,108230.0,108220.0,0.58447366]
[1751692251280,0.09162129,108230.0,108220.0,0.58447366]
[1751692251696,0.10086078,108230.0,108220.0,0.58447366]
[1751692252353,0.09162129,108230.0,108220.0,0.58447366]
[1751692252549,0.10086078,108230.0,108220.0,0.58447366]
[1751692253563,0.1008607,108230.0,108220.0,0.58447366]
[1751692254283,0.1008607,108230.0,108220.0,0.58447375]
[1751692254495,0.1008613,108230.0,108220.0,0.58447375]
[1751692255338,0.1008613,108230.0,108220.0,0.58447383]
[1751692255549,0.1008619,108230.0,108220.0,0.29672609]
[1751692255761,0.1008619,108230.0,108220.0,0.57523383]
[1751692255968,0.1008619,108230.0,108220.0,0.58447383]
[1751692256176,0.09162232,108230.0,108220.0,0.59371375]
[1751692256627,0.09162232,108230.0,108220.0,0.58447383]
[1751692256829,0.1008619,108230.0,108220.0,0.58447383]
[1751692257038,0.1008619,108230.0,108220.0,0.57523383]
[1751692257459,0.09162283,108230.0,108220.0,0.57523383]
[1751692258518,0.09162283,108230.0,108220.0,0.58447383]
[1751692260038,0.09162283,108230.0,108220.0,0.57523383]
[1751692260287,0.09162283,108230.0,108220.0,0.58447383]
[1751692260764,0.08238325,108230.0,108220.0,0.59371375]
[1751692260996,0.08238325,108230.0,108220.0,0.66512191]
[1751692261190,0.08238325,108230.0,108220.0,0.58447383]
[1751692261474,0.08238325,108230.0,108220.0,0.59371375]
[1751692261738,0.07314376,108230.0,108220.0,0.60295358]
[1751692261972,0.07313105,108230.0,108220.0,0.60295358]
[1751692262199,0.07313105,108230.0,108220.0,0.59371375]
[1751692262430,0.07313105,108230.0,108220.0,0.31520601]
[1751692262661,0.07313105,108230.0,108220.0,0.59371375]
[1751692263136,0.08237054,108230.0,108220.0,0.59371375]
[1751692263649,0.09161012,108230.0,108220.0,0.58447383]
[1751692264110,0.09161012,108230.0,108220.0,0.59371375]
[1751692264306,0.08237054,108230.0,108220.0,0.59371375]
[1751692265294,0.08237054,108230.0,108220.0,0.59055375]
[1751692265767,0.07313105,108230.0,108220.0,0.59979358]
[1751692266494,0.07313105,108230.0,108220.0,0.59055375]
[1751692267385,0.07313105,108230.0,108220.0,0.59979358]
[1751692267555,0.07313105,108230.0,108220.0,0.59055375]
[1751692267992,0.07313071,108230.0,108220.0,0.59979358]
[1751692269025,0.08237012,108230.0,108220.0,0.59979358]
[1751692269433,0.0916097,108230.0,108220.0,0.58131383]
[1751692269795,0.0916097,108230.0,108220.0,0.59055375]
[1751692269993,0.08237012,108230.0,108220.0,0.59979358]
[1751692270357,0.08237012,108230.0,108220.0,0.59055375]
[1751692270985,0.0916097,108230.0,108220.0,0.58131383]
[1751692271205,0.08237012,108230.0,108220.0,0.59055375]
[1751692272218,0.0916097,108230.0,108220.0,0.58131383]
[1751692272837,0.08237012,108230.0,108220.0,0.59055375]
[1751692274128,0.08237012,108230.0,108220.0,0.59979358]
[1751692274330,0.08237012,108230.0,108220.0,0.59055375]
[1751692274871,0.09160961,108230.0,108220.0,0.59055375]
[1751692278410,0.09160961,108230.0,108220.0,0.58131383]
[1751692278820,0.0731302,108230.0,108220.0,0.58131383]
[1751692279024,0.09160876,108230.0,108220.0,0.59055366]
[1751692279413,0.09160876,108230.0,108220.0,0.59055375]
[1751692280531,0.10084825,108230.0,108220.0,0.58131383]
[1751692282024,0.07869593,108230.0,108220.0,0.58131383]
[1751692282577,0.06945644,108230.0,108220.0,0.59055366]
[1751692283032,0.06391868,108230.0,108220.0,0.59055366]
[1751692283159,0.0823969,108230.0,108220.0,0.59055366]
[1751692283565,0.09163622,108230.0,108220.0,0.59055366]
[1751692284678,0.10087563,108230.0,108220.0,0.59055375]
[1751692285567,0.10087623,108230.0,108220.0,0.59055375]
[1751692286765,0.09163674,108230.0,108220.0,0.59979358]
[1751692287193,0.08239733,108230.0,108220.0,0.59979358]
[1751692300693,0.07315801,108230.0,108220.0,0.59979358]
[1751692303246,0.08239742,108230.0,108220.0,0.59979358]
[1751692303475,0.07315801,108230.0,108220.0,0.59979358]
[1751692304299,0.08239733,108230.0,108220.0,0.59979358]
[1751692304744,0.08239733,108230.0,108220.0,0.32128584]
[1751692306312,0.09163682,108230.0,108220.0,0.31204601]
[1751692306951,0.08239733,108230.0,108220.0,0.31204601]
[1751692307169,0.09163674,108230.0,108220.0,0.31204601]
[1751692307541,0.09163674,108230.0,108220.0,0.32128584]
[1751692307751,0.09163674,108230.0,108220.0,0.59979358]
[1751692308389,0.09163674,108230.0,108220.0,0.59055375]
[1751692309240,0.07315801,108230.0,108220.0,0.59055375]
[1751692309443,0.07315801,108230.0,108220.0,0.59979358]
[1751692316793,0.08239733,108230.0,108220.0,0.59979358]
[1751692317411,0.09163674,108230.0,108220.0,0.59055375]
[1751692317638,0.06945695,108230.0,108220.0,0.30280609]
[1751692317842,0.10087672,108230.0,108220.0,0.58131383]